bitfinex/quotes_SOLUSD_20250829
["timestamp","ask_amount","ask_price","bid_price","bid_amount"]
[1756459455643,19.49896091,207.75,207.71,0.7]
[1756459455849,19.49896091,207.72,207.71,0.7]
[1756459456325,19.49896091,207.72,207.68,0.7]
[1756459456527,26.0,207.74,207.69,0.7]
[1756459457032,19.49896091,207.7,207.69,0.7]
[1756459457653,19.49896091,207.76,207.69,20.19896091]
[1756459457837,19.49896091,207.76,207.7,0.7]
[1756459458032,19.49896091,207.75,207.7,0.7]
[1756459458233,19.49896091,207.72,207.71,0.7]
[1756459458439,26.0,207.75,207.69,0.7]
[1756459458626,19.49896091,207.7,207.69,0.7]
[1756459458830,19.49896091,207.72,207.69,0.7]
[1756459459147,19.49896091,207.73,207.69,0.7]
[1756459459337,19.49896091,207.72,207.7,0.7]
[1756459459946,30.81352251,207.75,207.67,0.7]
[1756459459947,19.49896091,207.71,207.67,0.7]
[1756459460151,19.49896091,207.69,207.67,0.7]
[1756459460361,19.49896091,207.69,207.68,0.7]
[1756459460529,19.49896091,207.69,207.65,0.03]
[1756459460730,19.49896091,207.69,207.66,0.7]
[1756459460948,19.49896091,207.69,207.67,0.7]
[1756459461145,19.49896091,207.7,207.68,0.7]
[1756459461351,19.49896091,207.75,207.69,20.19896091]
[1756459461651,19.49896091,207.75,207.7,0.7]
[1756459461851,19.49896091,207.75,207.71,0.7]
[1756459462049,19.49896091,207.75,207.72,0.7]
[1756459462852,19.49896091,207.73,207.67,19.49896091]
[1756459463034,19.49896091,207.72,207.67,0.7]
[1756459463237,19.49896091,207.68,207.65,0.03]
[1756459463432,19.49896091,207.66,207.65,0.03]
[1756459463640,26.0,207.71,207.65,0.03]
[1756459464134,19.49896091,207.7,207.66,0.7]
[1756459464333,40.08,207.74,207.67,0.7]
[1756459464534,19.49896091,207.71,207.67,0.7]
[1756459465255,19.49896091,207.69,207.65,0.03]
[1756459465559,19.49896091,207.69,207.65,0.73]
[1756459465732,19.49896091,207.7,207.66,0.7]
[1756459465936,19.49896091,207.7,207.67,0.7]
[1756459466358,19.49896091,207.68,207.65,0.03]
[1756459466565,19.49896091,207.67,207.65,0.03]
[1756459466868,19.49896091,207.66,207.65,0.03]
[1756459468038,19.49896091,207.67,207.65,0.03]
[1756459468353,19.49896091,207.66,207.65,0.03]
[1756459468529,4.8155639,207.66,207.65,0.03]
[1756459468732,26.0,207.67,207.65,0.03]
[1756459468733,19.49896091,207.67,207.65,0.73]
[1756459468942,19.49896091,207.68,207.65,0.73]
[1756459469562,19.49896091,207.68,207.66,0.7]
[1756459469736,0.06,207.81,207.67,0.7]
[1756459469737,19.49896091,207.73,207.67,0.7]
[1756459470644,19.49896091,207.73,207.67,25.01427972]
[1756459470958,26.0,207.74,207.7,19.49896091]
[1756459471145,19.49896091,207.77,207.71,0.71]
[1756459471456,19.49896091,207.75,207.71,0.71]
[1756459471666,19.49896091,207.75,207.69,19.49896091]
[1756459471667,19.49896091,207.75,207.69,0.71]
[1756459471843,19.49896091,207.74,207.69,0.71]
[1756459472164,19.49896091,207.72,207.69,0.71]
[1756459472959,19.49896091,207.7,207.66,0.03]
[1756459473164,19.49896091,207.68,207.66,0.03]
[1756459474359,19.49896091,207.67,207.66,0.03]
[1756459474568,19.49896091,207.67,207.66,0.74]
[1756459474938,19.49896091,207.67,207.66,0.03]
[1756459475465,20.15896091,207.67,207.66,0.03]
[1756459476146,20.15896091,207.67,207.63,0.03]
[1756459476147,26.0,207.64,207.63,0.03]
[1756459476348,50.31498865,207.64,207.63,0.03]
[1756459476552,50.97498865,207.64,207.61,0.03]
[1756459476844,19.49896091,207.62,207.53,0.71]
[1756459477050,19.49896091,207.56,207.53,5.5285496]
[1756459477235,19.49896091,207.57,207.54,0.71]
[1756459477655,19.49896091,207.56,207.54,0.71]
[1756459478471,19.49896091,207.56,207.51,5.52903769]
[1756459478650,19.49896091,207.55,207.52,0.71]
[1756459478850,19.49896091,207.56,207.51,4.81903769]
[1756459479050,19.49896091,207.57,207.52,0.71]
[1756459479244,19.49896091,207.55,207.52,0.71]
[1756459479442,19.49896091,207.55,207.51,4.81903769]
[1756459479646,19.49896091,207.56,207.53,0.71]
[1756459480843,19.49896091,207.56,207.53,5.528519]
[1756459481050,19.49896091,207.57,207.53,5.528519]
[1756459481340,26.0,207.6,207.54,0.71]
[1756459481548,21.43044191,207.63,207.56,19.49896091]
[1756459481767,1.931481,207.63,207.58,19.49896091]
[1756459482063,19.49896091,207.64,207.58,20.20896091]
[1756459482446,19.49896091,207.64,207.59,4.81718772]
[1756459482768,20.15896091,207.64,207.59,4.81718772]
[1756459483152,19.49896091,207.65,207.6,0.71]
[1756459483352,19.49896091,207.65,207.61,0.71]
[1756459483662,19.49896091,207.65,207.59,4.81718772]
[1756459484257,19.49896091,207.67,207.6,0.71]
[1756459484455,19.49896091,207.66,207.6,20.20896091]
[1756459484660,19.49896091,207.66,207.61,4.81672366]
[1756459484861,0.66,207.66,207.61,24.31568457]
[1756459485249,20.15896091,207.66,207.61,4.81672366]
[1756459485762,0.66,207.66,207.61,4.81672366]
[1756459486161,0.66,207.66,207.61,24.31568457]
[1756459486765,26.0,207.68,207.62,0.71]
[1756459487066,45.49896091,207.68,207.62,20.20896091]
[1756459487669,45.49896091,207.68,207.61,4.81672366]
[1756459487670,19.49896091,207.7,207.64,19.49896091]
[1756459487869,4.81443927,207.71,207.63,60.24896091]
[1756459487870,19.49896091,207.69,207.63,60.24896091]
[1756459489254,19.49896091,207.69,207.64,4.81602774]
[1756459489565,19.49896091,207.67,207.63,45.56624876]
[1756459489756,0.66,207.68,207.63,40.04]
[1756459490768,19.49896091,207.68,207.63,45.56619694]
[1756459490994,0.06,207.69,207.63,45.56619694]
[1756459491152,0.06,207.69,207.65,4.81579581]
[1756459491693,0.06,207.69,207.66,0.71]
[1756459492577,0.06,207.69,207.67,4.81533201]
[1756459492962,0.06,207.69,207.65,4.81579581]
[1756459493183,19.55896091,207.69,207.66,40.02]
[1756459493388,0.72,207.69,207.64,40.02]
[1756459493877,0.66,207.68,207.63,40.02]
[1756459494057,19.49896091,207.65,207.63,40.02]
[1756459494573,19.49896091,207.66,207.63,40.02]
[1756459494884,19.49896091,207.66,207.63,40.73]
[1756459495061,19.49896091,207.67,207.63,40.73]
[1756459495256,19.49896091,207.67,207.63,45.54616231]
[1756459495561,19.49896091,207.64,207.6,0.03]
[1756459495869,19.49896091,207.63,207.6,0.74]
[1756459496071,19.49896091,207.64,207.6,0.74]
[1756459496268,20.15896091,207.64,207.6,0.03]
[1756459496472,4.81510015,207.68,207.6,0.03]
[1756459496684,19.49896091,207.65,207.61,0.71]
[1756459496874,19.49896091,207.64,207.6,4.84691158]
[1756459497376,19.49896091,207.67,207.61,20.20896091]
[1756459498283,20.15896091,207.68,207.62,4.81649166]
[1756459498778,20.15896091,207.68,207.62,24.31545257]
[1756459499771,20.15896091,207.68,207.63,40.0]
[1756459500294,20.15896091,207.68,207.63,44.81614054]
[1756459500594,0.06,207.69,207.64,20.19896091]
[1756459501270,0.06,207.69,207.65,0.7]
[1756459501475,0.06,207.69,207.66,20.19896091]
[1756459501686,0.06,207.69,207.67,19.49896091]
[1756459501987,0.06,207.69,207.68,59.49896091]
[1756459502188,0.06,207.69,207.68,60.19896091]
[1756459502595,0.06,207.69,207.68,65.01406106]
[1756459503466,0.06,207.69,207.67,24.3142336]
[1756459503693,0.06,207.69,207.64,19.49896091]
[1756459503874,19.55896091,207.69,207.65,40.0]
[1756459504269,19.55896091,207.69,207.63,124.69896091]
[1756459504270,20.19896091,207.68,207.66,39.98]
[1756459504464,0.06,207.69,207.66,39.98]
[1756459504888,19.55896091,207.69,207.66,39.98]
[1756459505276,0.06,207.69,207.66,39.98]
[1756459505483,19.49896091,207.67,207.6,0.73]
[1756459505678,0.7,207.66,207.6,0.03]
[1756459505884,19.49896091,207.61,207.6,0.03]
[1756459506298,20.19896091,207.61,207.6,0.03]
[1756459506610,25.01568457,207.61,207.6,0.03]
[1756459507806,51.01568457,207.61,207.6,0.03]
[1756459508309,55.91439084,207.61,207.6,0.03]
[1756459508472,22.45723909,207.61,207.57,0.03]
[1756459508671,45.49896091,207.58,207.57,0.03]
[1756459509267,5.51672366,207.61,207.57,0.03]
[1756459509498,19.49896091,207.58,207.57,0.03]
[1756459509880,19.49896091,207.59,207.57,0.03]
[1756459510275,19.49896091,207.61,207.57,0.73]
[1756459510505,19.49896091,207.63,207.58,0.7]
[1756459510699,19.49896091,207.63,207.58,5.51731305]
[1756459510904,0.7,207.65,207.6,19.49896091]
[1756459511077,19.49896091,207.66,207.61,0.7]
[1756459511694,0.06,207.68,207.63,19.49896091]
[1756459512004,0.06,207.68,207.65,19.49896091]
[1756459512394,0.06,207.68,207.66,0.7]
[1756459512977,0.06,207.68,207.64,0.7]
[1756459513201,0.06,207.68,207.62,59.47896091]
[1756459513404,0.06,207.68,207.63,0.7]
[1756459513580,20.19896091,207.67,207.61,31.51672366]
[1756459513781,0.06,207.68,207.64,39.98]
[1756459514190,0.06,207.68,207.64,40.68]
[1756459514808,0.7,207.67,207.63,39.96]
[1756459515013,19.49896091,207.65,207.63,39.96]
[1756459515382,19.49896091,207.64,207.63,39.96]
[1756459515906,19.49896091,207.64,207.57,24.34659537]
[1756459516208,26.0,207.66,207.59,19.49896091]
[1756459516511,19.49896091,207.65,207.59,20.19896091]
[1756459516910,19.49896091,207.65,207.6,4.81695568]
[1756459517092,19.49896091,207.64,207.59,0.7]
[1756459517402,19.49896091,207.63,207.59,0.7]
[1756459517584,20.19896091,207.62,207.58,78.5]
[1756459517789,19.49896091,207.59,207.58,118.46]
[1756459517997,0.7,207.62,207.57,0.03]
[1756459518299,0.7,207.62,207.57,39.99]
[1756459518300,19.49896091,207.61,207.57,39.99]
[1756459518888,0.7,207.62,207.57,39.99]
[1756459518889,19.49896091,207.59,207.57,39.99]
[1756459519204,5.51660538,207.62,207.57,39.99]
[1756459519399,19.49896091,207.59,207.57,39.99]
[1756459519707,19.49896091,207.58,207.57,0.03]
[1756459520110,0.7,207.58,207.57,0.03]
[1756459520308,20.19896091,207.58,207.57,0.03]
[1756459520615,14.486805,207.62,207.57,0.03]
[1756459520782,5.51648507,207.63,207.57,25.04659431]
[1756459520783,25.01522203,207.63,207.57,25.04659431]
[1756459520983,14.484008,207.66,207.59,19.49896091]
[1756459521191,0.06,207.68,207.63,19.49896091]
[1756459521392,0.06,207.68,207.64,39.94]
[1756459521591,0.06,207.68,207.65,0.7]
[1756459522206,0.06,207.68,207.65,19.49896091]
[1756459522415,0.06,207.68,207.67,19.49896091]
[1756459522892,0.06,207.68,207.67,20.19896091]
[1756459523094,0.06,207.68,207.67,25.01429292]
[1756459524598,0.06,207.68,207.64,4.81602774]
[1756459524801,0.06,207.68,207.65,60.13896091]
[1756459524992,0.06,207.68,207.67,19.49896091]
[1756459525506,0.06,207.68,207.67,20.19896091]
[1756459526117,0.06,207.68,207.67,39.94]
[1756459527200,0.06,207.68,207.67,44.75533201]
[1756459527396,0.06,207.68,207.67,64.95429292]
[1756459527819,0.06,207.68,207.67,143.45429292]
[1756459528558,0.06,207.68,207.67,123.95533201]
[1756459528698,0.06,207.68,207.67,129.51429292]
[1756459528904,0.06,207.68,207.67,119.12]
[1756459529297,0.06,207.68,207.67,118.42]
[1756459529929,20.25896091,207.68,207.61,0.7]
[1756459530124,20.25896091,207.68,207.63,19.49896091]
[1756459530125,0.76,207.68,207.63,19.49896091]
[1756459530333,0.06,207.68,207.65,19.49896091]
[1756459530534,0.06,207.68,207.66,59.41896091]
[1756459530730,19.49896091,207.67,207.63,26.0]
[1756459531036,20.24896091,207.68,207.65,39.92]
[1756459531245,19.49896091,207.67,207.65,39.92]
[1756459531416,20.24896091,207.68,207.65,39.92]
[1756459531735,19.49896091,207.66,207.6,109.34692845]
[1756459531918,0.69,207.67,207.61,39.92]
[1756459531919,19.49896091,207.64,207.61,39.92]
[1756459532120,19.49896091,207.66,207.61,39.92]
[1756459532512,19.49896091,207.66,207.61,40.59]
[1756459532712,20.18896091,207.66,207.61,40.59]
[1756459532913,5.50557439,207.66,207.61,40.59]
[1756459533112,25.0045353,207.66,207.61,40.59]
[1756459534209,19.49896091,207.65,207.61,39.92]
[1756459534405,19.49896091,207.65,207.62,39.9]
[1756459534629,19.49896091,207.64,207.62,118.4]
[1756459536433,19.49896091,207.64,207.62,78.5]
[1756459536618,20.18896091,207.64,207.63,39.9]
[1756459537017,19.49896091,207.64,207.63,39.9]
[1756459537626,5.50533201,207.67,207.63,39.9]
[1756459537822,0.06,207.68,207.65,19.49896091]
[1756459538024,0.06,207.68,207.66,39.9]
[1756459538339,0.06,207.68,207.66,119.07]
[1756459538508,0.06,207.68,207.67,0.67]
[1756459540220,0.06,207.68,207.66,123.21550146]
[1756459540445,0.06,207.68,207.66,123.88550146]
[1756459540925,0.06,207.68,207.67,23.10623673]
[1756459541235,0.06,207.68,207.67,42.81727582]
[1756459541433,0.06,207.68,207.67,39.88]
[1756459541609,0.06,207.68,207.67,60.04896091]
[1756459541814,0.06,207.68,207.67,62.98596602]
[1756459542308,0.06,207.68,207.67,60.04896091]
[1756459542514,0.06,207.68,207.67,64.86429292]
[1756459543632,0.06,207.68,207.67,4.81533201]
[1756459543824,0.06,207.68,207.67,64.86429292]
[1756459544223,0.06,207.68,207.67,90.86429292]
[1756459544613,0.06,207.68,207.67,50.98429292]
[1756459544840,0.06,207.68,207.67,90.86429292]
[1756459545740,0.06,207.69,207.67,90.86429292]
[1756459545741,0.06,207.86,207.81,26.0]
[1756459546036,0.06,207.86,207.83,45.49896091]
[1756459546331,0.06,207.86,207.83,88.6581978]
[1756459546542,0.06,207.86,207.83,89.3281978]
[1756459547116,0.06,207.86,207.83,91.2563268]
[1756459547831,0.06,207.86,207.83,76.56899077]
[1756459548017,0.06,207.86,207.83,96.06795168]
[1756459548530,0.06,207.86,207.83,101.06795168]
[1756459548933,0.06,207.86,207.83,81.56899077]
[1756459549135,0.06,207.86,207.83,101.06795168]
[1756459549736,1e-08,207.84,207.83,101.06795168]
[1756459549936,1e-08,207.91,207.89,20.0]
[1756459550112,2.617943,208.05,207.84,13.59559401]
[1756459550113,0.69,208.05,207.94,26.0]
[1756459550313,0.69,208.05,207.91,20.0]
[1756459550314,0.69,208.05,208.01,19.49896091]
[1756459550537,0.69,208.05,208.01,60.21896091]
[1756459551447,0.69,208.05,207.98,26.0]
[1756459551448,0.69,208.05,208.0,26.0]
[1756459551650,19.49896091,208.18,208.04,26.0]
[1756459551818,0.69,208.15,208.12,19.49896091]
[1756459552013,0.69,208.15,208.13,40.78]
[1756459552317,0.69,208.15,208.11,19.49896091]
[1756459552524,0.69,208.14,208.12,40.76]
[1756459552820,0.69,208.13,208.09,19.49896091]
[1756459553143,0.69,208.12,208.1,60.25896091]
[1756459553458,0.69,208.12,208.11,40.74]
[1756459554443,5.49498784,208.12,208.11,40.74]
[1756459554636,5.49498784,208.12,208.11,40.68]
[1756459554835,0.69,208.12,208.11,40.68]
[1756459555048,5.49492023,208.12,208.11,40.68]
[1756459555344,0.69,208.12,208.08,19.49896091]
[1756459555525,19.49896091,208.1,208.09,40.68]
[1756459555721,20.18896091,208.1,208.07,40.68]
[1756459555923,19.49896091,208.08,208.07,40.68]
[1756459556143,20.18896091,208.08,208.01,45.49896091]
[1756459556344,19.49896091,208.07,208.02,40.68]
[1756459556522,20.18896091,208.07,208.02,40.68]
[1756459557250,19.49896091,208.07,208.02,40.68]
[1756459557427,24.30481888,208.08,208.02,60.17896091]
[1756459557626,19.49896091,208.07,208.01,19.49896091]
[1756459557836,19.49896091,208.07,208.02,40.66]
[1756459558048,20.18896091,208.07,208.02,40.66]
[1756459558725,24.99503995,208.07,208.02,40.66]
[1756459559745,5.49607904,208.07,208.02,40.66]
[1756459559951,19.49896091,208.04,208.03,40.6]
[1756459560155,20.18896091,208.04,207.98,26.0]
[1756459560358,19.49896091,208.01,207.99,40.54]
[1756459560530,19.49896091,208.01,208.0,40.54]
[1756459560726,19.49896091,208.02,208.0,40.54]
[1756459561359,20.20896091,208.01,207.91,0.69]
[1756459561676,19.49896091,207.98,207.92,19.49896091]
[1756459561830,19.49896091,207.96,207.93,40.52]
[1756459562450,16.82449646,208.03,207.87,0.69]
[1756459562451,19.49896091,207.94,207.87,0.69]
[1756459562655,19.49896091,207.94,207.88,85.99896091]
[1756459562844,20.20896091,207.95,207.89,19.49896091]
[1756459563239,4.80860417,207.97,207.89,19.49896091]
[1756459563441,19.49896091,207.95,207.89,19.49896091]
[1756459563843,19.49896091,207.93,207.88,40.5]
[1756459564051,19.49896091,207.92,207.87,0.69]
[1756459564260,19.49896091,207.92,207.88,40.46]
[1756459564956,19.49896091,207.89,207.84,35.37]
[1756459565164,19.49896091,207.9,207.85,40.46]
[1756459565363,19.49896091,207.89,207.85,40.46]
[1756459566348,20.20896091,207.9,207.85,40.46]
[1756459567253,19.49896091,207.89,207.85,40.46]
[1756459568655,19.49896091,207.86,207.8,19.49896091]
[1756459569044,0.71,207.86,207.81,40.34]
[1756459569264,19.49896091,207.84,207.81,40.34]
[1756459569435,26.0,207.94,207.81,40.34]
[1756459569436,0.71,207.86,207.81,40.34]
[1756459569640,19.49896091,207.83,207.81,40.34]
[1756459569837,19.49896091,207.85,207.82,0.69]
[1756459570460,19.49896091,207.85,207.81,45.15205481]
[1756459570860,19.49896091,207.84,207.81,40.34]
[1756459571060,19.49896091,207.83,207.81,40.34]
[1756459571244,19.49896091,207.82,207.81,40.34]
[1756459571643,0.71,207.86,207.81,40.34]
[1756459571849,0.71,207.85,207.81,40.34]
[1756459573248,4.81087251,207.87,207.81,40.34]
[1756459573576,0.71,207.86,207.81,40.34]
[1756459573748,0.71,207.85,207.81,40.34]
[1756459574466,0.71,207.85,207.81,118.84]
[1756459575948,19.49896091,207.82,207.77,79.19]
[1756459576146,19.49896091,207.78,207.76,78.5]
[1756459576456,0.71,207.81,207.77,40.18]
[1756459576875,19.49896091,207.78,207.77,40.18]
[1756459577179,0.71,207.81,207.77,40.18]
[1756459577358,19.49896091,207.78,207.77,40.18]
[1756459577552,19.49896091,207.78,207.77,40.87]
[1756459578268,19.49896091,207.78,207.77,40.18]
[1756459578852,19.49896091,207.78,207.77,40.12]
[1756459579685,0.71,207.81,207.77,40.12]
[1756459579975,19.49896091,207.83,207.78,0.69]
[1756459580151,19.49896091,207.82,207.79,44.8925025]
[1756459580554,19.49896091,207.8,207.79,40.08]
[1756459581052,0.71,207.85,207.79,40.08]
[1756459581053,19.49896091,207.81,207.79,40.08]
[1756459581581,19.49896091,207.82,207.79,44.89248073]
[1756459582382,19.49896091,207.84,207.8,0.69]
[1756459582586,0.71,207.88,207.81,40.06]
[1756459582760,19.49896091,207.82,207.78,26.0]
[1756459582951,19.49896091,207.81,207.79,40.06]
[1756459583153,19.49896091,207.8,207.77,0.03]
[1756459583354,19.49896091,207.79,207.78,40.06]
[1756459583576,26.0,207.88,207.78,40.06]
[1756459583872,0.71,207.84,207.78,40.06]
[1756459584055,19.49896091,207.81,207.79,40.06]
[1756459584251,19.49896091,207.82,207.79,45.56253851]
[1756459584770,19.49896091,207.82,207.79,44.87253851]
[1756459585068,0.71,207.84,207.79,40.06]
[1756459585276,19.49896091,207.81,207.79,40.06]
[1756459585882,19.49896091,207.8,207.79,40.06]
[1756459586054,20.20896091,207.8,207.79,40.0]
[1756459587264,20.20896091,207.8,207.77,0.03]
[1756459587455,0.71,207.8,207.78,39.98]
[1756459587660,19.49896091,207.79,207.78,39.98]
[1756459588076,19.49896091,207.79,207.77,0.03]
[1756459588284,19.49896091,207.79,207.78,39.98]
[1756459590458,5.52188171,207.82,207.78,39.98]
[1756459590785,19.49896091,207.79,207.78,39.98]
[1756459591096,19.49896091,207.79,207.78,39.9]
[1756459597396,11.69902432,207.79,207.78,39.9]
[1756459599404,12.41902432,207.79,207.77,0.03]
[1756459599604,4.81162488,207.83,207.78,39.9]
[1756459599815,16.84068709,207.83,207.78,39.9]
[1756459600307,0.72,207.82,207.78,39.93]
[1756459600497,26.0,207.8,207.78,0.03]
[1756459600698,11.69902432,207.79,207.78,0.03]
[1756459600878,12.41902432,207.79,207.78,0.03]
[1756459601278,17.23157545,207.79,207.78,0.03]
[1756459601513,17.23157545,207.79,207.77,0.03]
[1756459601716,26.0,207.76,207.74,0.03]
[1756459602008,23.39804864,207.75,207.73,0.03]
[1756459602210,23.39804864,207.74,207.73,0.03]
[1756459602577,24.11804864,207.74,207.73,0.03]
[1756459602814,24.11804864,207.74,207.66,33.58]
[1756459602983,23.39804864,207.73,207.66,33.58]
[1756459603181,26.0,207.7,207.6,0.03]
[1756459603410,11.69902432,207.61,207.6,0.03]
[1756459603886,12.41902432,207.61,207.6,0.03]
[1756459604207,24.11804864,207.61,207.6,0.03]
[1756459605003,26.0,207.59,207.58,0.2]
[1756459605314,50.36277494,207.59,207.58,0.2]
[1756459605612,4.81579581,207.65,207.58,0.2]
[1756459605914,19.54558722,207.6,207.58,0.2]
[1756459606203,20.26558722,207.71,207.59,60.17558722]
[1756459606411,0.72,207.71,207.66,19.54558722]
[1756459606618,0.72,207.74,207.69,19.54558722]
[1756459606784,20.26558722,207.73,207.67,20.25558722]
[1756459606981,19.54558722,207.72,207.68,39.92]
[1756459607309,19.54558722,207.69,207.64,4.81602774]
[1756459607483,20.26558722,207.71,207.65,0.71]
[1756459607685,19.54558722,207.72,207.66,19.54558722]
[1756459607984,19.54558722,207.7,207.65,39.92]
[1756459608310,0.72,207.7,207.65,39.92]
[1756459608501,46.26558722,207.73,207.66,20.25558722]
[1756459608806,19.54558722,207.74,207.67,0.71]
[1756459609013,19.54558722,207.71,207.66,39.92]
[1756459609190,19.54558722,207.67,207.65,0.71]
[1756459609507,19.54558722,207.71,207.66,44.7355639]
[1756459609683,19.54558722,207.73,207.67,0.71]
[1756459609879,19.54558722,207.71,207.67,0.71]
[1756459610079,19.54558722,207.71,207.66,44.7355639]
[1756459610080,19.54558722,207.71,207.68,0.71]
[1756459610284,19.54558722,207.71,207.66,44.7355639]
[1756459610502,19.54558722,207.71,207.67,0.71]
[1756459610706,19.54558722,207.71,207.68,0.71]
[1756459611112,19.54558722,207.69,207.63,0.71]
[1756459611403,19.54558722,207.66,207.63,40.63]
[1756459611794,19.54558722,207.65,207.63,40.63]
[1756459611994,19.54558722,207.68,207.64,0.71]
[1756459612203,19.54558722,207.68,207.65,0.71]
[1756459612408,0.72,207.7,207.63,39.92]
[1756459612409,19.54558722,207.67,207.63,39.92]
[1756459612608,19.54558722,207.67,207.64,0.71]
[1756459612809,19.54558722,207.67,207.65,0.71]
[1756459613114,4.81397186,207.73,207.65,0.71]
[1756459613115,19.54558722,207.68,207.65,0.71]
[1756459613326,19.54558722,207.67,207.65,0.71]
[1756459613901,19.54558722,207.69,207.66,0.71]
[1756459614315,19.54558722,207.68,207.66,0.71]
[1756459614512,19.54558722,207.67,207.64,5.52602774]
[1756459614816,19.54558722,207.66,207.65,39.92]
[1756459615209,19.54558722,207.66,207.62,4.81648055]
[1756459615397,19.54558722,207.63,207.59,5.52716199]
[1756459615597,19.54558722,207.61,207.59,45.44716199]
[1756459617395,19.54558722,207.61,207.59,45.47716199]
[1756459617597,0.06,207.61,207.6,0.71]
[1756459619220,0.06,207.61,207.59,44.76716199]
[1756459619612,20.26558722,207.6,207.59,0.03]
[1756459621311,25.0825429,207.6,207.59,0.03]
[1756459621717,44.62813012,207.6,207.59,0.03]
[1756459622233,25.0825429,207.6,207.59,0.03]
[1756459622599,20.26558722,207.6,207.59,0.03]
[1756459623435,0.72,207.6,207.59,0.03]
[1756459623604,20.26558722,207.6,207.59,0.03]
[1756459623933,19.54558722,207.6,207.59,0.03]
[1756459624114,0.06,207.61,207.59,0.03]
[1756459624304,19.54558722,207.6,207.59,0.03]
[1756459624732,20.21558722,207.6,207.59,0.03]
[1756459624901,39.76117444,207.6,207.59,0.03]
[1756459625308,39.76117444,207.6,207.58,0.2]
[1756459625539,24.36277494,207.59,207.58,0.2]
[1756459625915,26.0,207.57,207.56,0.03]
[1756459626238,45.54558722,207.57,207.56,0.03]
[1756459626404,46.21558722,207.57,207.56,0.03]
[1756459627341,45.54558722,207.57,207.56,0.03]
[1756459627931,51.03323909,207.57,207.56,0.03]
[1756459629431,45.54558722,207.57,207.56,0.03]
[1756459629617,0.67,207.6,207.56,0.03]
[1756459629945,0.06,207.61,207.56,0.03]
[1756459629946,19.54558722,207.57,207.56,0.03]
[1756459631003,4.87674948,207.61,207.56,0.72]
[1756459631318,19.54558722,207.57,207.56,0.72]
[1756459631732,19.54558722,207.57,207.56,0.03]
[1756459632108,19.54558722,207.57,207.56,0.72]
[1756459632326,19.54558722,207.57,207.56,0.03]
[1756459632532,20.21558722,207.57,207.56,0.03]
[1756459632741,45.54558722,207.55,207.54,0.03]
[1756459633331,45.54558722,207.55,207.48,0.2]
[1756459633332,46.21558722,207.55,207.48,0.2]
[1756459633534,26.67,207.55,207.48,0.2]
[1756459633720,19.54558722,207.49,207.48,0.2]
[1756459633913,19.54558722,207.51,207.48,0.2]
[1756459634111,4.81792885,207.56,207.49,0.69]
[1756459634112,19.54558722,207.54,207.49,0.69]
[1756459634517,26.0,207.56,207.49,0.69]
[1756459634518,19.54558722,207.55,207.49,0.69]
[1756459634716,19.54558722,207.53,207.49,0.69]
[1756459634920,19.54558722,207.51,207.49,0.69]
[1756459635127,19.54558722,207.52,207.5,0.69]
[1756459635348,19.54558722,207.53,207.51,0.69]
[1756459635548,19.54558722,207.55,207.53,0.03]
[1756459635750,19.54558722,207.54,207.53,0.03]
[1756459636442,20.21558722,207.54,207.53,0.03]
[1756459637332,26.0,207.52,207.51,0.03]
[1756459637643,62.41143147,207.52,207.48,0.2]
[1756459637823,19.54558722,207.49,207.48,0.2]